bitfinex/quotes_SOLUSD_20260103
["timestamp","ask_amount","ask_price","bid_price","bid_amount"]
[1767432048825,3.36325478,130.51,130.48,0.57921948]
[1767432052014,0.70184307,130.5,130.48,0.57921948]
[1767432052643,0.70184307,130.5,130.47,0.57921948]
[1767432053432,3.36325478,130.5,130.47,0.57921948]
[1767432054431,0.70184307,130.5,130.47,0.57921948]
[1767432055722,0.70184307,130.5,130.48,8.24322928]
[1767432056922,3.36325478,130.51,130.48,8.24322928]
[1767432057221,0.70184307,130.51,130.48,8.24322928]
[1767432057418,3.36325478,130.52,130.49,0.57921948]
[1767432057608,0.70184307,130.52,130.49,0.57921948]
[1767432057808,3.36325478,130.52,130.49,0.57921948]
[1767432059529,0.70184307,130.51,130.48,0.57921948]
[1767432060516,0.70184307,130.51,130.47,8.2438167]
[1767432060713,0.70184307,130.51,130.47,27.40530976]
[1767432061833,0.71446185,130.5,130.47,27.40530976]
[1767432063136,1.70580887,130.52,130.48,0.69127087]
[1767432063336,7.65990042,130.55,130.48,0.69127087]
[1767432063639,1.70580887,130.53,130.48,0.69127087]
[1767432063842,1.70580887,130.53,130.5,0.69127087]
[1767432064735,7.66051339,130.54,130.5,0.69127087]
[1767432065116,0.71446185,130.52,130.5,8.35407849]
[1767432066840,0.71446185,130.52,130.5,7.66280762]
[1767432070044,0.71446185,130.52,130.5,0.69127087]
[1767432070744,7.65931372,130.56,130.5,0.69127087]
[1767432070946,1.70580887,130.54,130.5,0.69127087]
[1767432071120,1.70580887,130.54,130.49,27.51324956]
[1767432071319,7.65931372,130.56,130.5,0.69127087]
[1767432071536,1.70580887,130.55,130.5,0.69127087]
[1767432071944,1.70580887,130.56,130.51,0.69127087]
[1767432072118,1.70580887,130.56,130.52,8.35293191]
[1767432072736,0.71446185,130.55,130.52,8.35293191]
[1767432073440,0.71446185,130.55,130.53,0.69127087]
[1767432073648,1.70580887,130.57,130.53,0.69127087]
[1767432073938,1.91226977,130.57,130.53,0.66220494]
[1767432076140,0.25166195,130.55,130.52,19.15415262]
[1767432076331,33.12286944,130.6,130.5,0.69127087]
[1767432076332,13.98,130.6,130.5,0.69127087]
[1767432076520,1.70580887,130.54,130.5,0.69127087]
[1767432077130,13.98,130.6,130.51,8.353078]
[1767432077332,1.70580887,130.54,130.51,8.353078]
[1767432077639,13.98,130.6,130.51,8.353078]
[1767432077640,19.14618946,130.58,130.51,8.353078]
[1767432077943,1.70580887,130.54,130.51,8.353078]
[1767432078117,19.14618946,130.58,130.51,8.353078]
[1767432078323,1.70580887,130.54,130.51,8.353078]
[1767432078635,19.14618946,130.58,130.51,8.353078]
[1767432078835,1.70580887,130.54,130.51,8.353078]
[1767432079037,19.14618946,130.58,130.51,8.353078]
[1767432079245,1.70580887,130.54,130.51,8.353078]
[1767432079448,7.65934169,130.56,130.51,8.353078]
[1767432079741,1.70580887,130.54,130.51,8.353078]
[1767432080045,9.36515056,130.56,130.52,0.69127087]
[1767432080434,9.36515056,130.56,130.52,8.35275695]
[1767432083246,9.36515056,130.56,130.53,0.69127087]
[1767432083945,1.70580887,130.57,130.53,0.69127087]
[1767432085444,1.70580887,130.58,130.54,8.35175807]
[1767432086151,13.98,130.59,130.55,0.69127087]
[1767432086346,15.68580887,130.59,130.55,0.69127087]
[1767432087334,15.68580887,130.59,130.55,8.3510788]
[1767432087942,0.099,130.58,130.55,6.8510788]
[1767432089251,0.69127087,130.59,130.55,8.55688767]
[1767432089426,0.69127087,130.59,130.55,6.8510788]
[1767432089627,2.39707974,130.59,130.55,6.8510788]
[1767432090184,2.39707974,130.59,130.56,0.66744744]
[1767432090653,2.39707974,130.59,130.56,8.32619129]
[1767432092533,2.39707974,130.59,130.57,0.66744744]
[1767432092834,1.70580887,130.59,130.57,0.63770153]
[1767432100848,1.73555478,130.6,130.57,0.63770153]
[1767432101061,1.73555478,130.59,130.56,0.66744744]
[1767432101241,1.73555478,130.59,130.51,17.99997346]
[1767432101242,1.73555478,130.57,130.54,8.32772037]
[1767432101442,1.70580887,130.56,130.54,8.32772037]
[1767432102162,1.73555478,130.57,130.54,8.32772037]
[1767432102347,1.70580887,130.56,130.54,8.32772037]
[1767432105370,1.70580887,130.57,130.54,8.32772037]
[1767432107863,0.02974591,130.57,130.54,8.32772037]
[1767432108157,1.70580887,130.57,130.55,0.66744744]
[1767432108358,1.70580887,130.57,130.55,0.63852361]
[1767432109064,1.70580887,130.58,130.55,0.63852361]
[1767432109439,1.76447861,130.58,130.55,0.63852361]
[1767432109639,9.42263885,130.58,130.55,0.63852361]
[1767432110543,9.42263885,130.58,130.55,0.6087839]
[1767432111370,0.08840945,130.6,130.55,7.65942349]
[1767432111548,1.70580887,130.59,130.55,7.65942349]
[1767432111868,1.70580887,130.58,130.55,7.65942349]
[1767432112762,1.70580887,130.58,130.55,8.32687093]
[1767432117071,1.70580887,130.58,130.56,0.66744744]
[1767432117662,9.45187718,130.59,130.56,0.66744744]
[1767432119266,0.08840945,130.59,130.56,0.66744744]
[1767432119468,1.79421832,130.59,130.56,0.66744744]
[1767432120074,1.70580887,130.59,130.57,0.68126304]
[1767432120378,1.79421832,130.6,130.57,0.68126304]
[1767432121875,9.45129208,130.6,130.57,0.68126304]
[1767432122281,1.70580887,130.59,130.57,0.68126304]
[1767432124480,2.6620985,130.59,130.57,0.68126304]
[1767432124681,2.75050795,130.6,130.57,0.68126304]
[1767432127074,0.08840945,130.6,130.57,0.68126304]
[1767432127265,2.75050795,130.6,130.57,0.68126304]
[1767432129384,10.40769556,130.6,130.57,0.68126304]
[1767432132587,7.74559706,130.6,130.57,0.68126304]
[1767432132769,10.40769556,130.6,130.57,0.68126304]
[1767432135386,2.6620985,130.6,130.57,0.68126304]
[1767432135590,10.31908447,130.6,130.57,0.68126304]
[1767432136388,10.40749392,130.6,130.57,0.68126304]
[1767432137191,0.08840945,130.6,130.57,0.68126304]
[1767432137494,2.75050795,130.6,130.57,0.68126304]
[1767432138295,2.6620985,130.59,130.57,0.68126304]
[1767432138492,2.6620985,130.58,130.55,0.68126304]
[1767432138672,2.6620985,130.57,130.55,0.68126304]
[1767432146093,2.75050795,130.58,130.55,0.68126304]
[1767432146699,2.6620985,130.58,130.55,0.68126304]
[1767432149205,2.6620985,130.57,130.55,0.68126304]
[1767432149388,2.80948309,130.56,130.52,7.6613172]
[1767432149583,2.6620985,130.55,130.52,7.6613172]
[1767432149802,2.80948309,130.56,130.52,7.6613172]
[1767432149978,0.14738459,130.56,130.52,7.6613172]
[1767432150184,2.80948309,130.56,130.51,26.81786835]
[1767432150380,2.6620985,130.56,130.51,26.81786835]
[1767432151008,2.6620985,130.56,130.51,29.47996685]
[1767432151208,8.35139901,130.57,130.51,29.47996685]
[1767432151389,11.01349751,130.57,130.54,0.72123775]
[1767432153313,2.6620985,130.56,130.54,0.72123775]
[1767432154906,22.33020811,130.59,130.54,0.72123775]
[1767432155096,3.35455201,130.6,130.55,0.72123775]
[1767432155296,0.69245351,130.6,130.56,0.72123775]
[1767432155601,14.67245351,130.61,130.58,0.72123775]
[1767432155805,13.98,130.61,130.58,0.72123775]
[1767432156113,24.67296392,130.63,130.59,0.72123775]
[1767432156309,14.35544679,130.63,130.59,0.72123775]
[1767432156506,14.35544679,130.63,130.6,0.72123775]
[1767432158694,17.01754529,130.63,130.6,0.69137852]
[1767432159614,0.20500742,130.61,130.55,19.14955135]
[1767432159917,3.35455201,130.62,130.57,7.6583207]
[1767432160798,3.35455201,130.62,130.59,0.72123775]
[1767432163022,11.01042966,130.62,130.59,0.72123775]
[1767432165621,3.35455201,130.62,130.59,0.72123775]
[1767432165919,22.52771729,130.63,130.6,0.72123775]
[1767432166101,25.18981579,130.63,130.6,0.72123775]
[1767432167308,0.20500742,130.62,130.6,0.72123775]
[1767432167818,14.18,130.63,130.61,0.72123775]
[1767432168021,0.2,130.63,130.61,0.72123775]
[1767432168195,1e-08,130.64,130.63,0.72123775]
[1767432168513,1e-08,130.64,130.63,0.69178156]
[1767432169403,1e-08,130.64,130.63,8.34699092]
[1767432169803,0.2,130.65,130.63,7.65520936]
[1767432170317,0.2,130.65,130.64,0.72123775]
[1767432170620,0.2,130.65,130.63,0.72123775]
[1767432176116,8.54390685,130.65,130.62,0.72123775]
[1767432176322,3.09684436,130.64,130.61,0.72123775]
[1767432176926,0.43474586,130.64,130.61,0.72123775]
[1767432177133,3.09684436,130.64,130.61,0.72123775]
[1767432179200,3.34939812,130.63,130.59,0.72123775]
[1767432179407,3.0993699,130.62,130.59,0.72123775]
[1767432181336,3.10878713,130.6,130.57,0.71637504]
[1767432181842,0.44668863,130.6,130.57,0.71637504]
[1767432182011,3.10878713,130.6,130.57,0.71637504]
[1767432182205,0.44668863,130.6,130.57,0.71637504]
[1767432182406,3.10878713,130.6,130.57,0.71637504]
[1767432186544,1.70347534,130.6,130.57,0.71637504]
[1767432186839,10.03795434,130.61,130.57,0.71637504]
[1767432189620,10.03795434,130.61,130.57,8.37509242]
[1767432189815,2.38126261,130.61,130.58,0.71637504]
[1767432192159,0.67778727,130.61,130.58,0.71637504]
[1767432192341,2.38126261,130.61,130.58,0.71637504]
[1767432193256,22.31373582,130.62,130.58,8.37442482]
[1767432193448,1.70347534,130.61,130.59,0.71637504]
[1767432193833,22.31373582,130.62,130.59,0.71637504]
[1767432193834,16.36126261,130.62,130.59,0.71637504]
[1767432194654,1.70347534,130.61,130.59,0.71637504]
[1767432200739,0.67547628,130.6,130.58,0.71637504]
[1767432201759,2.38126261,130.61,130.58,0.71637504]
[1767432202660,1.70347534,130.61,130.59,0.71637504]
[1767432203960,22.31366101,130.62,130.59,0.71637504]
[1767432204151,1.70347534,130.61,130.59,0.71637504]
[1767432206259,9.35989205,130.61,130.59,0.71637504]
[1767432206559,1.70347534,130.6,130.58,0.71637504]
[1767432207341,2.37895162,130.6,130.57,8.3750489]
[1767432209340,2.37895162,130.6,130.57,0.71637504]
[1767432210160,2.37668662,130.58,130.55,14.74599004]
[1767432210363,2.3805641,130.58,130.55,8.32185307]
[1767432210564,0.67708876,130.58,130.55,8.32185307]
[1767432210766,0.64708876,130.58,130.55,8.32185307]
[1767432211262,2.3505641,130.58,130.55,8.32185307]
[1767432217467,2.3505641,130.58,130.54,0.66239634]
[1767432217468,1.70347534,130.56,130.54,0.66239634]
[1767432217855,2.15085549,130.57,130.54,0.66239634]
[1767432218467,2.15085549,130.57,130.54,8.32287277]
[1767432219065,2.12085549,130.57,130.54,8.32287277]
[1767432219259,0.41738015,130.57,130.54,8.32287277]
[1767432220671,2.12085549,130.57,130.54,8.32287277]
[1767432226671,0.41738015,130.57,130.54,8.32287277]
[1767432226971,0.41738015,130.57,130.55,0.66239634]
[1767432227869,0.41738015,130.57,130.55,8.32229321]
[1767432228075,2.3805641,130.58,130.55,8.32229321]
[1767432229178,0.38798015,130.57,130.55,8.32229321]
[1767432229559,0.38798015,130.57,130.55,7.65989687]
[1767432230054,2.09145549,130.57,130.55,7.65989687]
[1767432235796,0.38798015,130.57,130.55,7.65989687]
[1767432236701,0.38798015,130.57,130.55,0.66239634]
[1767432238992,0.38798015,130.57,130.55,8.32221923]
[1767432240909,16.37880436,130.59,130.56,0.68082979]
[1767432241212,0.3699223,130.58,130.56,0.68082979]
[1767432241617,0.3399223,130.58,130.56,0.68082979]
[1767432241801,2.04339764,130.58,130.55,8.34065268]
[1767432244514,0.3399223,130.58,130.55,8.34065268]
[1767432244716,2.04339764,130.58,130.55,8.34065268]
[1767432246514,3.00236991,130.58,130.55,8.34065268]
[1767432249696,0.3399223,130.58,130.55,8.34065268]
[1767432250808,0.3399223,130.58,130.56,0.68082979]
[1767432252423,0.3399223,130.58,130.56,8.33985831]
[1767432252726,0.3099223,130.58,130.56,8.33985831]
[1767432267627,2.66244761,130.59,130.56,8.33985831]
[1767432267824,2.66244761,130.59,130.57,0.68082979]
[1767432269642,2.66244761,130.58,130.57,0.68082979]
[1767432269943,2.66244761,130.57,130.54,7.66035173]
[1767432271746,2.66244761,130.57,130.55,0.67724112]
[1767432272446,2.66244761,130.58,130.55,0.67724112]
[1767432273345,2.66244761,130.57,130.55,0.67724112]
[1767432273539,2.66244761,130.58,130.55,0.67724112]
[1767432276049,3.37015454,130.58,130.55,0.67724112]
[1767432276250,3.37015454,130.57,130.55,0.67724112]
[1767432276841,2.66244761,130.57,130.55,0.67724112]
[1767432277346,3.37015454,130.57,130.55,0.67724112]
[1767432278945,2.66244761,130.57,130.55,0.67724112]
[1767432280326,2.66244761,130.58,130.55,8.33711767]
[1767432280522,2.66244761,130.58,130.56,0.67724112]
[1767432280927,3.37015454,130.58,130.56,0.67724112]
[1767432284254,0.70770693,130.58,130.56,0.67724112]
[1767432284428,3.37015454,130.58,130.56,0.67724112]
[1767432285049,22.34486841,130.6,130.56,7.6592683]
[1767432285251,16.64244761,130.61,130.58,0.67724112]
[1767432285549,2.66244761,130.6,130.58,0.67724112]
[1767432285754,2.66244761,130.6,130.57,0.67724112]
[1767432286128,2.66244761,130.6,130.57,8.33593593]
[1767432286439,16.64244761,130.61,130.58,0.67724112]
[1767432287235,17.35015454,130.61,130.58,0.67724112]
[1767432287424,2.66244761,130.6,130.58,0.67724112]
[1767432290067,3.37015454,130.61,130.59,0.67724112]
[1767432290358,11.02631304,130.62,130.59,0.67724112]
[1767432293858,3.37015454,130.62,130.59,0.67724112]
[1767432294050,3.35323152,130.62,130.6,0.71150976]
[1767432299040,17.33323152,130.63,130.6,0.71150976]
[1767432301763,24.9884745,130.63,130.6,0.71150976]
[1767432304270,2.66244761,130.62,130.6,0.71150976]
[1767432308476,1.70288304,130.62,130.6,0.71150976]
[1767432310363,2.41168074,130.62,130.6,0.71150976]
[1767432318079,0.7087977,130.62,130.6,0.71150976]
[1767432318378,2.41168074,130.62,130.6,0.71150976]
[1767432319892,0.7087977,130.61,130.58,7.6581406]
[1767432320093,0.7087977,130.61,130.58,8.33241915]
[1767432322903,0.7087977,130.62,130.59,8.33178565]
[1767432323411,0.7087977,130.62,130.6,0.67427855]
[1767432323701,0.7087977,130.64,130.6,0.67427855]
[1767432326311,0.7087977,130.64,130.61,8.33066014]
[1767432327413,2.61168074,130.65,130.62,0.67427855]
[1767432327704,0.7087977,130.64,130.62,0.67427855]
[1767432328410,0.7087977,130.64,130.62,8.33004961]
[1767432331091,0.86567014,130.65,130.62,8.33004961]
[1767432331292,2.56855318,130.65,130.62,8.33004961]
[1767432331501,0.86567014,130.65,130.62,8.33004961]
[1767432331699,2.56855318,130.65,130.62,8.33004961]
[1767432334425,0.86567014,130.65,130.62,8.33004961]
[1767432334617,2.56855318,130.65,130.62,8.33004961]
[1767432337427,0.86567014,130.65,130.62,0.72200246]
[1767432337723,2.56855318,130.65,130.62,0.72200246]
[1767432339029,2.56855318,130.65,130.62,8.37769661]
[1767432340421,0.86567014,130.65,130.63,0.72200246]
[1767432341207,0.2,130.65,130.63,0.72200246]
[1767432344340,0.2,130.65,130.63,8.37709896]
[1767432344744,0.2,130.65,130.64,0.72200246]
[1767432346032,0.2,130.65,130.63,7.6550965]
[1767432346033,0.2,130.65,130.63,8.37709896]
[1767432348817,1e-08,130.65,130.64,0.72200246]
[1767432349418,0.2,130.66,130.65,0.72200246]
[1767432349419,1e-08,130.66,130.65,0.72200246]
[1767432350026,1e-08,130.67,130.65,0.72200246]
[1767432350418,0.2,130.69,130.67,0.72200246]
[1767432351849,0.2,130.71,130.69,0.72200246]
[1767432352547,0.86567014,130.71,130.68,8.37428283]
[1767432352721,2.36855318,130.7,130.67,8.3747073]
[1767432353922,0.66567014,130.7,130.67,8.3747073]
[1767432356432,0.66567014,130.7,130.68,0.72200246]
[1767432357928,0.66567014,130.7,130.68,8.37420203]
[1767432358245,0.66567014,130.7,130.68,7.65219957]
[1767432359452,0.66567014,130.7,130.68,0.72200246]
[1767432359840,0.2,130.71,130.68,0.72200246]
[1767432360147,0.6795918,130.7,130.66,19.89897443]
[1767432360386,0.6795918,130.7,130.67,0.70847291]
[1767432360557,0.2,130.71,130.69,1.70288304]
[1767432360848,0.2,130.71,130.69,0.70847291]
[1767432361039,0.8795918,130.71,130.69,0.70847291]
[1767432361246,0.6795918,130.7,130.67,0.70847291]
[1767432361628,0.29762775,130.67,130.64,0.70847291]
[1767432361854,0.26762775,130.67,130.64,8.3627026]
[1767432362251,1.70288304,130.67,130.64,8.3627026]
[1767432362442,1.70288304,130.65,130.62,7.65531929]
[1767432362647,1.70288304,130.66,130.63,7.65520379]
[1767432362850,1.70288304,130.66,130.63,8.3636767]
[1767432363047,26.7790171,130.7,130.63,8.3636767]
[1767432363350,1.70288304,130.66,130.63,8.3636767]
[1767432363531,1.70288304,130.67,130.63,8.3636767]
[1767432363736,2.38247484,130.67,130.64,0.70847291]
[1767432363957,0.6795918,130.67,130.64,0.70847291]
[1767432364138,2.38247484,130.67,130.64,0.70847291]
[1767432364339,0.6795918,130.66,130.64,0.70847291]
[1767432367880,2.38247484,130.68,130.65,0.70847291]
[1767432368040,0.6795918,130.68,130.65,0.70847291]
[1767432369062,3.33768317,130.69,130.65,0.70847291]
[1767432369960,0.6795918,130.69,130.66,8.36192461]
[1767432370153,0.6795918,130.7,130.67,0.70847291]
[1767432372264,0.6795918,130.7,130.67,8.36113987]
[1767432372560,0.6795918,130.7,130.68,0.70847291]
[1767432373336,0.8795918,130.71,130.68,0.70847291]
[1767432373746,3.33768317,130.69,130.66,8.36174318]
[1767432374158,3.33768317,130.68,130.65,0.70847291]
[1767432375069,0.6795918,130.67,130.64,8.36293782]
[1767432375395,3.33768317,130.67,130.64,8.36293782]
[1767432376160,0.6795918,130.67,130.64,8.36293782]
[1767432376366,3.33768317,130.67,130.64,8.36293782]
[1767432377674,2.65809137,130.67,130.64,8.36293782]
[1767432377853,3.33768317,130.67,130.64,8.36293782]
[1767432380575,7.65191789,130.69,130.64,8.36293782]
[1767432380576,0.6795918,130.69,130.65,0.70847291]
[1767432381555,3.33768317,130.7,130.66,0.70847291]
[1767432381759,0.6795918,130.7,130.67,0.70847291]
[1767432383168,0.6795918,130.7,130.68,7.65228037]
[1767432383961,0.6795918,130.69,130.66,7.65325273]
[1767432384170,0.8795918,130.71,130.68,0.70847291]
[1767432384780,0.6795918,130.7,130.68,0.70847291]
[1767432385282,0.6795918,130.7,130.67,27.49332864]
[1767432387187,0.2,130.71,130.69,8.36016776]
[1767432387479,1e-08,130.71,130.7,0.70847291]
[1767432390184,1e-08,130.71,130.7,8.35958232]
[1767432391484,0.70103215,130.7,130.67,0.67006512]
[1767432391865,1e-08,130.71,130.69,0.67006512]
[1767432392277,1e-08,130.71,130.7,0.67006512]
[1767432393672,1e-08,130.71,130.69,8.32125273]
[1767432394072,1e-08,130.71,130.7,8.32117453]
[1767432396202,1e-08,130.71,130.7,10.9792659]
[1767432396569,1e-08,130.71,130.7,8.32117453]
[1767432400185,0.2,130.73,130.71,0.67006512]
[1767432400490,1e-08,130.73,130.71,0.67006512]
[1767432400695,1e-08,130.73,130.72,0.67006512]
[1767432401393,1e-08,130.73,130.72,8.32000392]
[1767432401596,0.70103216,130.73,130.71,7.65041405]
[1767432402174,0.70103216,130.73,130.7,7.65101371]
[1767432402375,0.70103215,130.72,130.7,7.65101371]
[1767432405211,1e-08,130.73,130.7,0.67006512]
[1767432405501,0.70103216,130.73,130.7,0.67006512]
[1767432406786,0.70103216,130.73,130.7,8.3208628]
[1767432408286,0.70103215,130.72,130.7,8.3208628]
[1767432408492,1e-08,130.73,130.71,0.67006512]
[1767432410884,0.70103216,130.73,130.71,0.67006512]
[1767432411185,0.70103216,130.73,130.7,8.32076688]
[1767432415696,1e-08,130.73,130.71,0.67006512]
[1767432417698,1e-08,130.73,130.71,8.32028696]
[1767432418209,1e-08,130.73,130.69,21.78655054]
[1767432418210,0.70103215,130.72,130.7,7.65105281]
[1767432420114,0.70103215,130.72,130.7,0.70717807]
[1767432421189,0.67854892,130.73,130.7,0.70717807]
[1767432423512,0.67854892,130.73,130.7,8.35789855]
[1767432431023,0.67854891,130.72,130.7,0.70717807]
[1767432431205,0.67854891,130.72,130.7,7.65102232]
[1767432431407,0.67854891,130.72,130.7,8.35820039]
[1767432432420,0.67854892,130.73,130.7,8.35820039]
[1767432440206,0.67854891,130.71,130.66,20.60541692]
[1767432440410,1e-08,130.73,130.66,0.70717807]
[1767432440411,1.69982781,130.69,130.66,0.70717807]
[1767432440613,1.69982781,130.7,130.66,0.70717807]
[1767432441114,1.69982781,130.7,130.66,8.36037907]
[1767432442328,2.37837672,130.7,130.66,8.36037907]
[1767432442832,2.37837672,130.71,130.68,0.70717807]
[1767432443429,0.67854891,130.7,130.67,8.35965702]
[1767432446137,0.67854891,130.71,130.68,0.70717807]
[1767432446436,0.67854891,130.72,130.68,0.70717807]
[1767432446938,2.37837672,130.72,130.68,0.70717807]
[1767432447137,2.37837672,130.72,130.69,8.35887292]
[1767432447628,0.67854891,130.71,130.69,8.35887292]
[1767432448540,1.69982781,130.72,130.69,8.35887292]
[1767432449939,21.60939222,130.73,130.69,8.35887292]
[1767432450138,1.69982781,130.72,130.69,8.35887292]
[1767432450315,2.36796451,130.72,130.69,8.35887292]
[1767432451227,0.42736419,130.71,130.69,8.35887292]
[1767432451416,0.42736419,130.71,130.69,0.70717807]
[1767432452834,1.627192,130.72,130.69,0.70717807]
[1767432453034,1.69982781,130.72,130.69,0.70717807]
[1767432454842,2.27228132,130.72,130.69,0.70717807]
[1767432456534,2.27228132,130.72,130.69,8.35887178]
[1767432457244,0.07245351,130.72,130.69,8.35887178]
[1767432457452,1.77228132,130.72,130.69,8.35887178]
[1767432458054,0.07245351,130.72,130.69,8.35887178]
[1767432459257,23.38167354,130.73,130.7,0.6967266]
[1767432459449,21.60939222,130.73,130.7,0.6967266]
[1767432459646,23.38167354,130.73,130.7,0.6967266]
[1767432459857,0.07245351,130.72,130.69,0.6967266]
[1767432460161,0.04245351,130.72,130.69,0.6967266]
[1767432460657,0.04245351,130.72,130.69,8.34841439]
[1767432461059,15.65982782,130.73,130.7,0.6967266]
[1767432461248,15.15982782,130.73,130.7,0.6967266]
[1767432461760,13.46000001,130.73,130.7,0.6967266]
[1767432463239,9.59110101,130.74,130.7,0.6967266]
[1767432463443,0.04245351,130.73,130.7,0.6967266]
[1767432463857,1.74228132,130.73,130.7,0.6967266]
[1767432464154,1.74228132,130.73,130.7,8.34779717]
[1767432465245,1.69982781,130.73,130.71,0.6967266]
[1767432465482,1.94228132,130.74,130.71,0.6967266]
[1767432466660,0.24245351,130.74,130.71,8.34725044]
[1767432467445,0.2,130.74,130.72,0.6967266]
[1767432468740,0.2,130.74,130.72,8.34657486]
[1767432468939,0.2,130.74,130.72,0.6967266]
[1767432472060,0.2,130.74,130.73,0.6967266]
[1767432472866,0.17,130.74,130.73,0.6967266]
[1767432473964,0.17,130.74,130.73,8.34608022]
[1767432477074,0.17,130.74,130.73,0.6967266]
[1767432485885,0.2,130.75,130.74,0.70416388]
[1767432486290,0.1,130.76,130.75,0.70416388]
[1767432486862,0.2,130.77,130.75,0.70416388]
[1767432488095,0.2,130.77,130.75,8.35199752]
[1767432488404,0.2,130.77,130.76,0.70416388]
[1767432491894,0.2,130.77,130.75,0.70416388]
[1767432493076,0.2,130.79,130.77,0.70416388]
[1767432493283,0.30318383,130.77,130.75,0.70416388]
[1767432493684,0.30318383,130.77,130.74,8.35271077]
[1767432494698,3.54528281,130.79,130.76,0.70416388]
[1767432495003,0.89081387,130.79,130.76,0.70416388]
[1767432497103,0.89081387,130.79,130.76,8.35141523]
[1767432498307,0.2,130.79,130.77,8.35110697]
[1767432501118,1.54528281,130.8,130.77,8.35110697]
[1767432506992,0.21942324,130.79,130.76,7.64738414]
[1767432507196,2.87389218,130.79,130.76,8.35154802]
[1767432507606,0.21942324,130.79,130.77,0.70416388]
[1767432509230,0.68609996,130.78,130.75,8.35219179]
[1767432509612,0.22409001,130.77,130.75,8.35219179]
[1767432509913,0.67040705,130.78,130.75,8.35219179]
[1767432510115,3.32487599,130.78,130.75,8.35219179]
[1767432510329,0.67040705,130.78,130.75,8.35219179]
[1767432510818,0.67040705,130.78,130.76,0.69988175]
[1767432511228,0.67040705,130.78,130.75,8.34790966]
[1767432511728,0.67040705,130.78,130.76,0.69988175]
[1767432512599,3.32487599,130.79,130.76,0.69988175]
[1767432512825,0.23962599,130.78,130.76,0.69988175]
[1767432513493,2.65446894,130.79,130.76,0.69988175]
[1767432513699,3.32487599,130.79,130.76,0.69988175]
[1767432516809,0.23962599,130.78,130.76,0.69988175]
[1767432517010,0.23962599,130.78,130.76,0.67026922]
[1767432517824,0.23962599,130.78,130.76,0.64158552]
[1767432522432,3.32487599,130.77,130.73,8.34868043]
[1767432522612,3.32487599,130.77,130.73,0.69988175]
[1767432523424,0.29733926,130.76,130.73,0.69988175]
[1767432524113,2.9518082,130.76,130.73,0.69988175]
[1767432524313,2.9518082,130.76,130.73,8.34916562]
[1767432526907,3.32114531,130.75,130.72,8.34979234]
[1767432527636,0.66667637,130.75,130.72,8.34979234]
[1767432528826,0.67040705,130.76,130.73,0.69988175]
[1767432529139,10.97211637,130.77,130.73,0.69988175]
[1767432529439,3.32487599,130.77,130.73,0.69988175]
[1767432529840,0.67040705,130.77,130.73,0.69988175]
[1767432531920,0.67040705,130.77,130.74,0.69988175]
[1767432532234,3.32487599,130.77,130.74,0.69988175]
[1767432532542,2.65446894,130.77,130.74,0.69988175]
[1767432533316,3.32487599,130.78,130.74,0.69988175]
[1767432534837,0.67040705,130.79,130.75,0.69988175]
[1767432535042,3.32487599,130.79,130.75,0.69988175]
[1767432535838,0.67040705,130.79,130.75,0.69988175]
[1767432537148,0.67040705,130.79,130.76,8.3474804]
[1767432537344,0.2,130.81,130.77,0.69988175]
[1767432537540,0.66667637,130.8,130.77,0.69988175]
[1767432537735,3.32114531,130.8,130.77,0.69988175]
[1767432537946,2.65446894,130.79,130.77,0.69988175]
[1767432538444,2.95550157,130.79,130.77,0.69988175]
[1767432538638,3.31748887,130.78,130.75,8.34786089]
[1767432539029,3.31748887,130.78,130.76,0.69988175]
[1767432539030,2.65446894,130.78,130.76,0.69988175]
[1767432542152,3.32487599,130.79,130.76,0.69988175]
[1767432544671,2.65446894,130.78,130.76,0.69988175]
[1767432545367,3.32487599,130.79,130.76,0.69988175]
[1767432549760,3.32487599,130.79,130.76,0.67038797]
[1767432552047,3.32487599,130.79,130.76,8.31796038]
[1767432552567,7.64562709,130.8,130.77,0.67861056]
[1767432552568,3.33565979,130.8,130.77,0.67861056]
[1767432552868,0.68119085,130.8,130.77,0.6493146]
[1767432553433,0.68119085,130.8,130.77,0.62030362]
[1767432554037,0.68119085,130.8,130.77,8.23748476]
[1767432554237,0.68119085,130.8,130.77,7.64684597]
[1767432555339,2.57913051,130.81,130.77,7.64684597]
[1767432556156,2.57913051,130.81,130.78,0.67861056]
[1767432557057,0.88119085,130.81,130.79,0.67861056]
[1767432558656,0.88119085,130.81,130.77,9.34470408]
[1767432558843,0.88119085,130.81,130.78,0.67861056]
[1767432562161,0.2,130.81,130.79,0.67861056]
[1767432562465,0.2,130.81,130.8,0.67861056]
[1767432564372,0.60570874,130.81,130.79,0.67861056]
[1767432564543,0.60570874,130.81,130.78,0.67861056]
[1767432565268,0.60570874,130.81,130.78,8.32481274]
[1767432565655,0.60570874,130.81,130.79,0.67861056]
[1767432568383,0.60570874,130.81,130.78,8.32481274]
[1767432572277,0.60570874,130.81,130.79,0.68565513]
[1767432573398,0.60570874,130.81,130.78,8.33185731]
[1767432573598,0.60570874,130.81,130.79,0.68565513]
[1767432581410,0.60570874,130.81,130.78,0.68565513]